bitfinex-derivatives/quotes_BTCF0:USTF0_20250922
["timestamp","ask_amount","ask_price","bid_price","bid_amount"]
[1758527510738,1.12768975,112740.0,112730.0,0.08105998]
[1758527510939,0.64985,112740.0,112730.0,0.08105998]
[1758527512734,0.64585,112740.0,112730.0,0.08705998]
[1758527514345,0.64685,112740.0,112730.0,0.17169358]
[1758527514538,1.12468975,112740.0,112730.0,0.08158998]
[1758527514833,1.99028975,112740.0,112730.0,0.002]
[1758527515235,1.74000975,112740.0,112730.0,0.002]
[1758527516536,0.87468975,112740.0,112730.0,0.002]
[1758527516942,0.87468975,112740.0,112730.0,0.06568907]
[1758527517242,1.73916975,112740.0,112730.0,0.06568907]
[1758527517644,0.87468975,112740.0,112730.0,0.06568907]
[1758527517941,0.39685,112740.0,112730.0,0.0921036]
[1758527518535,0.4854757,112740.0,112730.0,0.00347]
[1758527519230,0.4854757,112740.0,112730.0,0.08305998]
[1758527519430,0.96331545,112740.0,112730.0,0.08305998]
[1758527520239,0.37552,112740.0,112730.0,0.89953333]
[1758527520438,0.87447975,112740.0,112730.0,0.08158998]
[1758527520642,0.3748,112740.0,112730.0,0.89953333]
[1758527520943,0.3748,112740.0,112730.0,0.93146641]
[1758527521151,0.3618,112740.0,112730.0,1.03146641]
[1758527521636,0.001,112740.0,112730.0,1.03146641]
[1758527521838,0.001,112740.0,112730.0,1.03136749]
[1758527523443,0.001,112740.0,112730.0,1.89348749]
[1758527523744,0.3618,112740.0,112730.0,1.89332749]
[1758527524139,0.3618,112740.0,112730.0,1.99332749]
[1758527524643,0.001,112740.0,112730.0,2.35412749]
[1758527525942,0.001,112740.0,112730.0,1.01432774]
[1758527526141,0.014,112740.0,112730.0,1.87488774]
[1758527526336,0.014,112740.0,112730.0,0.8128]
[1758527526538,0.013,112700.0,112690.0,0.0001]
[1758527526746,0.03484,112680.0,112670.0,0.02133]
[1758527526936,0.013,112680.0,112670.0,0.22029433]
[1758527527246,0.4624682,112690.0,112670.0,1.08461433]
[1758527527447,0.4843082,112690.0,112680.0,0.13157353]
[1758527527748,0.4624682,112690.0,112680.0,0.13157353]
[1758527527947,0.53447372,112690.0,112680.0,0.13157353]
[1758527529339,0.52147052,112690.0,112680.0,0.24049353]
[1758527529735,0.53447052,112690.0,112680.0,0.24157353]
[1758527530048,0.55631052,112690.0,112680.0,0.24157353]
[1758527530249,0.55631052,112690.0,112680.0,0.33024643]
[1758527530547,0.55631052,112690.0,112680.0,0.33324643]
[1758527531748,0.46764552,112690.0,112680.0,0.33324643]
[1758527535442,0.46764552,112690.0,112680.0,0.23324643]
[1758527535443,0.55631052,112690.0,112680.0,0.23324643]
[1758527537347,0.55631052,112690.0,112680.0,0.14457353]
[1758527537541,1.03415027,112690.0,112680.0,0.14457353]
[1758527537941,1.03415027,112690.0,112680.0,0.14497353]
[1758527538141,0.55631052,112690.0,112680.0,0.14497353]
[1758527538547,0.55631052,112690.0,112680.0,0.23364643]
[1758527539044,0.44580552,112690.0,112680.0,0.23364643]
[1758527539748,0.08500552,112690.0,112680.0,0.23364643]
[1758527540252,0.53447052,112690.0,112680.0,0.23364643]
[1758527540448,0.44580552,112690.0,112680.0,0.33364643]
[1758527540745,0.44580552,112690.0,112680.0,0.23364643]
[1758527541049,0.53447052,112690.0,112680.0,0.23364643]
[1758527541550,0.53447052,112690.0,112680.0,1.09124643]
[1758527541741,0.53447052,112690.0,112680.0,1.09108643]
[1758527541944,0.44580552,112690.0,112680.0,1.09108643]
[1758527542151,0.53447052,112690.0,112680.0,1.09108643]
[1758527542346,0.44580552,112690.0,112680.0,1.09108643]
[1758527542852,0.44580552,112690.0,112680.0,0.9897229]
[1758527543151,0.53447052,112690.0,112680.0,1.10000643]
[1758527543342,0.44580552,112690.0,112680.0,1.10000643]
[1758527543538,0.43280552,112690.0,112680.0,1.10000643]
[1758527543849,0.43280552,112690.0,112680.0,1.57784618]
[1758527544049,0.43280552,112690.0,112680.0,1.10000643]
[1758527545447,0.43280552,112690.0,112680.0,0.24256643]
[1758527545644,0.43290552,112690.0,112680.0,0.24256643]
[1758527547252,0.0001,112690.0,112680.0,1.33120618]
[1758527548148,0.0001,112690.0,112680.0,1.43120618]
[1758527551443,0.0001,112690.0,112680.0,1.53698583]
[1758527551645,0.0001,112690.0,112680.0,1.52698583]
[1758527552051,0.0001,112690.0,112680.0,1.52398583]
[1758527552553,0.0001,112690.0,112680.0,2.37136618]
[1758527552852,0.0001,112690.0,112680.0,1.51820618]
[1758527553152,0.0001,112690.0,112680.0,2.38780618]
[1758527553852,0.0001,112690.0,112680.0,2.38740618]
[1758527554252,0.0001,112690.0,112680.0,2.37340618]
[1758527554953,0.0001,112690.0,112680.0,2.37740618]
[1758527555753,0.0001,112690.0,112680.0,2.37712618]
[1758527557556,0.0001,112690.0,112680.0,1.52520618]
[1758527557757,0.0001,112690.0,112680.0,2.37580618]
[1758527558054,0.0001,112690.0,112680.0,1.52520618]
[1758527558256,0.0001,112690.0,112680.0,2.37564618]
[1758527558650,0.0001,112690.0,112680.0,2.44482063]
[1758527559249,0.0001,112690.0,112680.0,2.19482063]
[1758527560157,0.39684,112730.0,112720.0,0.1118414]
[1758527560354,0.37371,112730.0,112720.0,1.44824115]
[1758527561155,0.37371,112730.0,112720.0,0.9704014]
[1758527561356,0.37671,112730.0,112720.0,0.9704014]
[1758527561559,0.3638,112730.0,112720.0,1.55852468]
[1758527561861,0.6178,112730.0,112720.0,1.55784468]
[1758527562157,0.6178,112730.0,112720.0,1.65784468]
[1758527562350,0.65084,112730.0,112720.0,1.0605614]
[1758527562550,1.19831972,112730.0,112720.0,0.0232]
[1758527562756,0.03604,112720.0,112710.0,0.7841285]
[1758527562958,0.47047997,112730.0,112720.0,0.1122414]
[1758527563158,0.72047997,112730.0,112720.0,0.1122414]
[1758527563462,0.47047997,112730.0,112720.0,0.1122414]
[1758527563665,0.39684,112730.0,112720.0,0.1142414]
[1758527564361,0.39684,112730.0,112720.0,0.9623614]
[1758527564564,0.39684,112730.0,112720.0,0.1142414]
[1758527564753,0.39684,112730.0,112720.0,0.9621214]
[1758527566364,0.62371,112730.0,112720.0,0.9710414]
[1758527566865,0.64684,112730.0,112720.0,0.9703214]
[1758527567166,0.49351552,112740.0,112730.0,0.1118336]
[1758527567461,0.49341552,112740.0,112730.0,0.1118336]
[1758527568365,0.4729464,112740.0,112730.0,0.1118336]
[1758527568564,0.880753,112740.0,112730.0,0.1118336]
[1758527568760,0.881753,112740.0,112730.0,0.1118336]
[1758527569166,0.4739464,112740.0,112730.0,0.1118336]
[1758527569865,0.881753,112740.0,112730.0,0.1118336]
[1758527570471,0.882753,112740.0,112730.0,0.1118336]
[1758527570757,0.882753,112740.0,112730.0,0.0232]
[1758527572362,0.882753,112740.0,112730.0,0.1118336]
[1758527572558,0.4749464,112740.0,112730.0,0.1118336]
[1758527572758,0.882753,112740.0,112730.0,0.1118336]
[1758527573160,0.9713787,112740.0,112730.0,0.1118336]
[1758527573365,0.0885,112730.0,112690.0,0.3608]
[1758527573567,0.1247444,112640.0,112630.0,0.24191172]
[1758527573770,0.9274476,112640.0,112630.0,0.78932932]
[1758527573959,0.9274476,112640.0,112630.0,1.68116932]
[1758527573960,0.519641,112640.0,112630.0,1.68116932]
[1758527574159,0.74473,112640.0,112630.0,0.78972932]
[1758527574466,0.7216,112640.0,112630.0,1.68108932]
[1758527574964,0.7036,112640.0,112630.0,1.68108932]
[1758527575164,0.7036,112640.0,112630.0,1.78108932]
[1758527575857,0.7036,112640.0,112630.0,1.78308932]
[1758527577666,0.7036,112640.0,112630.0,0.89172932]
[1758527577867,0.7036,112640.0,112630.0,1.78116932]
[1758527578068,0.7036,112640.0,112630.0,0.89172932]
[1758527578267,0.7036,112640.0,112630.0,1.78052932]
[1758527578464,0.7036,112640.0,112630.0,1.86924162]
[1758527578770,0.7036,112640.0,112630.0,2.54716467]
[1758527579271,0.7036,112640.0,112630.0,1.65836467]
[1758527579465,0.7036,112640.0,112630.0,0.98044162]
[1758527579654,0.7036,112640.0,112630.0,1.86852162]
[1758527579966,0.7036,112640.0,112630.0,1.86812162]
[1758527580168,1.16710305,112640.0,112630.0,0.386]
[1758527580354,1.16710305,112640.0,112630.0,1.76828162]
[1758527580355,0.7036,112640.0,112630.0,1.76828162]
[1758527580663,0.7036,112640.0,112630.0,1.76788162]
[1758527580862,0.7036,112640.0,112630.0,1.76828162]
[1758527581064,0.7036,112640.0,112630.0,0.79188932]
[1758527581254,0.7036,112640.0,112630.0,0.386]
[1758527581255,0.73918,112640.0,112630.0,0.386]
[1758527581461,0.73918,112640.0,112630.0,1.3620323]
[1758527581662,0.73918,112640.0,112630.0,1.3624323]
[1758527581961,0.72639,112640.0,112630.0,1.3762023]
[1758527582360,0.72639,112640.0,112630.0,1.4762023]
[1758527582761,0.72639,112640.0,112630.0,1.86792162]
[1758527583069,0.72639,112640.0,112630.0,0.98060162]
[1758527583570,0.72639,112640.0,112630.0,1.86720162]
[1758527583968,0.7036,112640.0,112630.0,1.86720162]
[1758527584172,0.7036,112640.0,112630.0,1.86708162]
[1758527585577,0.7036,112640.0,112630.0,0.98048162]
[1758527585776,0.7036,112640.0,112630.0,1.86644162]
[1758527586777,0.7036,112640.0,112630.0,1.86749998]
[1758527587073,0.7036,112640.0,112630.0,1.86689998]
[1758527587977,0.7036,112640.0,112630.0,1.86589998]
[1758527588768,0.7036,112640.0,112630.0,0.98153998]
[1758527588968,0.7036,112640.0,112630.0,1.86529998]
[1758527589774,0.7036,112640.0,112630.0,0.89282768]
[1758527589775,0.73918,112640.0,112630.0,0.89282768]
[1758527589970,0.73918,112640.0,112630.0,1.76469998]
[1758527590276,0.73918,112640.0,112630.0,1.76429998]
[1758527590474,0.73918,112640.0,112630.0,1.76469998]
[1758527590875,0.73918,112640.0,112630.0,0.88153998]
[1758527591076,0.73918,112640.0,112630.0,1.76393998]
[1758527592372,0.73918,112640.0,112630.0,1.67522768]
[1758527592574,0.73918,112640.0,112630.0,1.67482768]
[1758527592774,0.73918,112640.0,112630.0,1.76354728]
[1758527592974,0.73918,112640.0,112630.0,1.65985768]
[1758527593182,1.25581485,112640.0,112630.0,0.38733836]
[1758527593478,1.16710305,112640.0,112630.0,0.38733836]
[1758527593676,0.73918,112640.0,112630.0,1.35645806]
[1758527593874,0.73918,112640.0,112630.0,1.26713836]
[1758527594086,0.73918,112640.0,112630.0,1.35625806]
[1758527594681,1.1477313,112640.0,112630.0,1.26757836]
[1758527596677,1.1477313,112640.0,112630.0,1.35629806]
[1758527596876,0.73918,112640.0,112630.0,1.35629806]
[1758527597077,1.1477313,112640.0,112630.0,1.35629806]
[1758527597274,1.1477313,112640.0,112630.0,1.26565836]
[1758527597474,1.1477313,112640.0,112630.0,1.35437806]
[1758527597972,1.1477313,112640.0,112630.0,0.47605806]
[1758527598178,1.2364431,112640.0,112630.0,1.26525836]
[1758527598483,0.8278918,112640.0,112630.0,1.35397806]
[1758527598676,1.1477313,112640.0,112630.0,1.35397806]
[1758527599179,1.1476513,112640.0,112630.0,1.35393806]
[1758527599378,1.2199796,112640.0,112630.0,1.35393806]
[1758527599778,1.2199796,112640.0,112630.0,0.38729836]
[1758527599974,1.2199796,112640.0,112630.0,1.26349836]
[1758527599975,1.3086914,112640.0,112630.0,1.26349836]
[1758527600380,1.3086914,112640.0,112630.0,1.26309836]
[1758527600579,1.3086914,112640.0,112630.0,0.38729836]
[1758527600781,1.3086914,112640.0,112630.0,1.35221806]
[1758527600981,1.3086914,112640.0,112630.0,1.26313836]
[1758527601184,1.3086914,112640.0,112630.0,1.26297836]
[1758527601485,1.3086914,112640.0,112630.0,1.35169806]
[1758527601880,1.2199796,112640.0,112630.0,0.47601806]
[1758527602078,1.3086914,112640.0,112630.0,1.35149806]
[1758527602787,1.3086914,112640.0,112630.0,1.35097806]
[1758527602987,1.2199796,112640.0,112630.0,1.74269738]
[1758527603191,1.3086914,112640.0,112630.0,1.74233738]
[1758527604080,1.3086914,112640.0,112630.0,0.86773738]
[1758527604283,1.3086914,112640.0,112630.0,0.02649836]
[1758527604488,1.3086914,112640.0,112630.0,0.90017836]
[1758527604684,1.3086914,112640.0,112630.0,1.01255806]
[1758527604990,1.3086914,112640.0,112630.0,1.01295806]
[1758527605688,1.3086914,112640.0,112630.0,1.01271806]
[1758527605887,1.3086914,112640.0,112630.0,0.13927806]
[1758527606183,1.3086914,112640.0,112630.0,1.01219806]
[1758527612793,1.2199796,112640.0,112630.0,1.01219806]
[1758527613097,0.8114283,112640.0,112630.0,1.81246868]
[1758527613281,0.7986383,112640.0,112630.0,1.81246868]
[1758527613594,0.72631,112640.0,112630.0,1.40391738]
[1758527613794,0.74084,112640.0,112630.0,1.40391738]
[1758527614293,0.74084,112640.0,112630.0,1.50387738]
[1758527614294,0.7408,112640.0,112630.0,1.50387738]
[1758527617694,0.81200718,112640.0,112630.0,1.50387738]
[1758527617890,0.81200718,112640.0,112630.0,1.40387738]
[1758527618684,0.81200718,112640.0,112630.0,1.39699738]
[1758527618887,0.81200718,112640.0,112630.0,1.49699738]
[1758527619291,0.81200718,112640.0,112630.0,1.55018565]
[1758527619496,0.81200718,112640.0,112630.0,1.95873695]
[1758527619999,0.81200718,112640.0,112630.0,1.87909032]
[1758527620593,0.81200718,112640.0,112630.0,1.95873695]
[1758527620794,0.81200718,112640.0,112630.0,1.87909032]
[1758527620998,0.81200718,112640.0,112630.0,1.46909902]
[1758527621994,0.70348,112640.0,112630.0,2.15410868]
[1758527622200,0.67702164,112640.0,112630.0,2.61584825]
[1758527622399,0.66637164,112640.0,112630.0,2.53620162]
[1758527622596,0.66637164,112640.0,112630.0,2.12765032]
[1758527623389,0.66637164,112640.0,112630.0,2.22765032]
[1758527625602,0.54656101,112640.0,112630.0,2.3391556]
[1758527625903,0.0001,112650.0,112640.0,0.1259819]
[1758527626095,0.3708,112660.0,112650.0,0.125974]
[1758527626096,0.3709,112660.0,112650.0,0.125974]
[1758527626294,0.3708,112660.0,112650.0,1.3966853]
[1758527626897,0.3708,112660.0,112650.0,1.40301594]
[1758527627096,0.3708,112660.0,112650.0,1.50301594]
[1758527627702,0.3818,112660.0,112650.0,1.50301594]
[1758527628602,0.3818,112660.0,112650.0,1.7068685]
[1758527628802,0.3828,112660.0,112650.0,1.7068685]
[1758527629201,0.38264,112660.0,112650.0,1.78655079]
[1758527629595,0.38264,112660.0,112650.0,2.70355272]
[1758527629596,0.01,112660.0,112650.0,2.70355272]
[1758527629897,0.0001,112670.0,112660.0,0.1250162]
[1758527630097,0.36899184,112680.0,112670.0,0.1123483]
[1758527630304,0.36889184,112680.0,112670.0,0.41855023]
[1758527630501,0.36889184,112680.0,112670.0,0.72475216]
[1758527631197,0.39296184,112680.0,112670.0,0.90433218]
[1758527631406,0.39396184,112680.0,112670.0,1.45801025]
[1758527631697,0.39396184,112680.0,112670.0,0.51895023]
[1758527631902,0.39396184,112680.0,112670.0,1.38075023]
[1758527632701,0.36989184,112680.0,112670.0,1.38075023]
[1758527632901,0.36989184,112680.0,112670.0,1.38015023]
[1758527633402,0.36989184,112680.0,112670.0,1.45973025]
[1758527633602,0.36989184,112680.0,112670.0,0.60053025]
[1758527633798,0.36989184,112680.0,112670.0,1.46374025]
[1758527634600,0.36989184,112680.0,112670.0,1.46330025]
[1758527634800,0.36989184,112680.0,112670.0,1.46286025]
[1758527635001,0.36989184,112680.0,112670.0,1.46274025]
[1758527635913,0.36989184,112680.0,112670.0,0.60458025]
[1758527636409,0.36989184,112680.0,112670.0,1.46210025]
[1758527636903,0.36989184,112680.0,112670.0,1.38252023]
[1758527637109,0.36989184,112680.0,112670.0,1.46210025]
[1758527637404,0.36989184,112680.0,112670.0,1.38196023]
[1758527637609,0.36989184,112680.0,112670.0,1.68816216]
[1758527638110,0.36989184,112680.0,112670.0,1.38196023]
[1758527638610,0.96638377,112680.0,112670.0,0.2147483]
[1758527638904,0.96638377,112680.0,112670.0,1.28818193]
[1758527639109,0.96638377,112680.0,112670.0,1.28858193]
[1758527639311,0.96638377,112680.0,112670.0,1.28818193]
[1758527639609,0.96638377,112680.0,112670.0,1.28858193]
[1758527640208,0.96638377,112680.0,112670.0,0.52095023]
[1758527640408,0.96638377,112680.0,112670.0,1.28818193]
[1758527640604,0.96638377,112680.0,112670.0,1.37687023]
[1758527640806,1.2725857,112680.0,112670.0,0.88198]
[1758527641003,0.96638377,112680.0,112670.0,1.18818193]
[1758527641310,0.96638377,112680.0,112670.0,1.18778193]
[1758527641610,0.96638377,112680.0,112670.0,1.18818193]
[1758527641912,0.96638377,112680.0,112670.0,0.98198]
[1758527642111,0.96638377,112680.0,112670.0,1.18758193]
[1758527642502,0.96638377,112680.0,112670.0,0.33226193]
[1758527642703,0.96638377,112680.0,112670.0,1.18694193]
[1758527643111,0.96638377,112680.0,112670.0,0.33226193]
[1758527643512,0.96638377,112680.0,112670.0,1.18666193]
[1758527644015,0.96634377,112680.0,112670.0,1.18666193]
[1758527644313,0.96634377,112680.0,112670.0,1.27535033]
[1758527644509,0.96634377,112680.0,112670.0,0.33226193]
[1758527644706,0.96634377,112680.0,112670.0,1.18650193]
[1758527645107,0.96634377,112680.0,112670.0,1.27519033]
[1758527645307,0.98720929,112680.0,112660.0,0.30503984]
[1758527645508,0.98720929,112680.0,112630.0,0.11350528]
[1758527645509,0.13709384,112640.0,112630.0,0.11350528]
[1758527645714,0.01466,112630.0,112620.0,0.11154528]
[1758527646005,0.69664018,112630.0,112620.0,0.33090193]
[1758527646209,0.69664018,112630.0,112620.0,0.0247]
[1758527646808,0.69064018,112630.0,112620.0,0.13601848]
[1758527647015,0.70530018,112630.0,112620.0,0.13601848]
[1758527647415,0.70530018,112630.0,112620.0,0.13901848]
[1758527647614,0.70430018,112630.0,112620.0,0.13901848]
[1758527648010,0.7762234,112630.0,112620.0,0.13901848]
[1758527648211,0.7762234,112630.0,112620.0,0.0277]
[1758527648416,0.7762234,112630.0,112620.0,0.0287]
[1758527648715,0.78327185,112630.0,112620.0,0.0287]
[1758527649718,0.78327185,112630.0,112620.0,0.88538]
[1758527650117,0.1033956,112610.0,112600.0,0.00733367]
[1758527650316,0.04838184,112600.0,112590.0,0.11131848]
[1758527650521,0.04838184,112600.0,112580.0,0.18388674]
[1758527650522,0.04029,112590.0,112580.0,0.18388674]
[1758527650723,0.70729193,112590.0,112580.0,0.18388674]
[1758527650919,1.01349386,112590.0,112580.0,0.202874]
[1758527651126,1.01349386,112590.0,112580.0,1.23264919]
[1758527651127,0.38643,112590.0,112580.0,1.23264919]
[1758527651325,0.68863193,112590.0,112580.0,1.23264919]
[1758527651623,0.68863193,112590.0,112580.0,1.5327877]
[1758527651823,0.68863193,112590.0,112580.0,1.42140839]
[1758527652120,0.68863193,112590.0,112580.0,0.47564919]
[1758527652325,0.68863193,112590.0,112580.0,0.02898726]
[1758527652326,1.09918526,112590.0,112580.0,0.02898726]
[1758527652522,0.70423193,112590.0,112580.0,0.07252726]
[1758527652922,0.70423193,112590.0,112580.0,1.01884646]
[1758527653122,0.68863193,112590.0,112580.0,1.57464839]
[1758527653324,0.68863193,112590.0,112580.0,1.17968726]
[1758527653622,0.68963193,112590.0,112580.0,1.28008726]
[1758527653818,0.38643,112590.0,112580.0,1.36884646]
[1758527654021,0.70072377,112590.0,112580.0,1.36884646]
[1758527654221,0.70072377,112590.0,112580.0,1.28008726]
[1758527654419,0.77046453,112590.0,112580.0,1.58628919]
[1758527654821,1.09226646,112590.0,112580.0,0.15644726]
[1758527655117,0.4642626,112590.0,112580.0,1.63041032]
[1758527655313,0.4642626,112590.0,112580.0,1.88001032]
[1758527655532,0.4642626,112590.0,112580.0,1.88041032]
[1758527655825,0.37289184,112590.0,112580.0,1.88041032]
[1758527656226,0.37289184,112590.0,112580.0,1.98041032]
[1758527656816,0.01209184,112590.0,112580.0,1.98041032]
[1758527658515,0.01209184,112590.0,112580.0,1.84699221]
[1758527659134,0.01209184,112590.0,112580.0,1.84683221]
[1758527660225,0.01209184,112590.0,112580.0,1.84687221]
[1758527662920,0.01209184,112590.0,112580.0,0.93426495]
[1758527663126,0.04366,112530.0,112520.0,0.07904828]
[1758527663325,0.04366,112530.0,112520.0,0.02746]
[1758527663526,0.76526,112530.0,112520.0,0.2343451]
[1758527663722,0.76526,112530.0,112520.0,1.1141051]
[1758527663926,0.76526,112530.0,112520.0,0.2347451]
[1758527664133,0.7217,112530.0,112520.0,1.69037645]
[1758527664432,0.7227,112530.0,112520.0,1.2113907]
[1758527664733,0.7227,112530.0,112520.0,1.79037645]
[1758527664934,0.7227,112530.0,112520.0,1.3113907]
[1758527665130,0.7227,112530.0,112520.0,2.04037645]
[1758527665334,0.7227,112530.0,112520.0,1.5616707]
[1758527665636,0.7237,112530.0,112520.0,2.04665645]
[1758527666033,0.7237,112530.0,112520.0,3.91685645]
[1758527666232,0.7237,112530.0,112520.0,3.91085645]
[1758527667232,0.5168149,112530.0,112520.0,3.80397135]
[1758527667438,0.3608,112550.0,112540.0,0.04583]
[1758527667633,0.3608,112550.0,112540.0,1.49240655]
[1758527667834,0.3608,112550.0,112540.0,0.61360655]
[1758527668038,0.3608,112550.0,112540.0,1.49216655]
[1758527668435,0.36955724,112560.0,112550.0,0.0887829]
[1758527668736,0.36955724,112560.0,112550.0,1.0092729]
[1758527668737,0.34245173,112560.0,112550.0,1.0092729]
[1758527668926,0.34245173,112560.0,112550.0,1.48825865]
[1758527669132,0.3608,112570.0,112560.0,0.130625]
[1758527669331,0.3608,112570.0,112560.0,0.60961075]
[1758527669536,0.36955724,112570.0,112560.0,0.60961075]
[1758527670328,0.74086658,112570.0,112540.0,0.005]
[1758527670536,0.05091,112530.0,112520.0,0.43164]
[1758527670743,0.05091,112530.0,112520.0,0.46493]
[1758527670744,0.77251,112530.0,112520.0,0.46493]
[1758527671034,0.77251,112530.0,112520.0,0.03409]
[1758527671240,0.77251,112530.0,112520.0,0.0004]
[1758527671640,0.77251,112530.0,112520.0,0.89116]
[1758527672041,0.77651,112530.0,112520.0,0.89116]
[1758527672433,0.77651,112530.0,112520.0,0.89096]
[1758527672639,0.77651,112530.0,112520.0,0.99096]
[1758527673041,0.77651,112530.0,112520.0,0.99052]
[1758527673240,1.35305159,112530.0,112520.0,0.0004]
[1758527673542,0.87406584,112530.0,112520.0,0.0004]
[1758527673742,0.87406584,112530.0,112520.0,0.88972]
[1758527673945,0.87406584,112530.0,112520.0,0.88964]
[1758527674340,0.75312724,112530.0,112520.0,1.49112225]
[1758527674540,0.73435724,112530.0,112520.0,3.62394225]
[1758527675447,0.73435724,112530.0,112520.0,3.72346225]
[1758527676839,0.33769448,112530.0,112520.0,3.72346225]
[1758527677046,0.36955724,112550.0,112540.0,0.1306408]
[1758527677246,0.36955724,112550.0,112540.0,1.49722655]
[1758527677743,0.38832724,112560.0,112550.0,0.1224729]
[1758527678533,0.38832724,112560.0,112550.0,0.60145865]
[1758527678939,0.36955724,112560.0,112550.0,0.71359865]
[1758527679139,0.38055724,112560.0,112550.0,0.71359865]
[1758527679339,0.38055724,112560.0,112550.0,0.2346129]
[1758527679844,0.011,112560.0,112550.0,1.07439865]
[1758527680546,0.011,112560.0,112550.0,1.96015865]
[1758527681350,0.01975724,112560.0,112550.0,1.96015865]
[1758527682238,0.01985944,112560.0,112550.0,1.96015865]
[1758527682442,0.01975724,112560.0,112550.0,1.96015865]
[1758527682747,0.01975724,112560.0,112550.0,1.95931865]
[1758527683542,0.43146724,112560.0,112550.0,0.2224729]
[1758527683744,0.43146724,112560.0,112550.0,1.1062729]
[1758527684347,0.07066724,112560.0,112550.0,1.1062729]
[1758527684547,0.07066724,112560.0,112550.0,1.4670729]
[1758527684739,0.07066724,112560.0,112550.0,1.95787865]
[1758527684740,0.01975724,112560.0,112550.0,1.95787865]
[1758527685140,0.01983793,112560.0,112550.0,1.95787865]
[1758527685344,0.01975724,112560.0,112550.0,1.95791865]
[1758527685847,0.01986225,112560.0,112550.0,1.95791865]
[1758527686142,0.01983547,112560.0,112550.0,1.95791865]
[1758527686345,0.01981995,112560.0,112550.0,1.95791865]
[1758527686541,0.01975724,112560.0,112550.0,1.95791865]
[1758527687649,0.01107723,112560.0,112550.0,1.32483865]
[1758527687848,0.011,112560.0,112550.0,2.30623865]
[1758527688451,0.011,112560.0,112550.0,2.30563865]
[1758527688854,9.394e-05,112570.0,112560.0,0.122465]
[1758527689047,9.394e-05,112570.0,112560.0,0.96225075]
[1758527689248,9.394e-05,112570.0,112560.0,0.97439075]
[1758527689950,9.394e-05,112570.0,112560.0,2.05459075]
[1758527690150,0.41171,112580.0,112570.0,0.1224571]
[1758527690354,0.37957,112580.0,112570.0,0.1224571]
[1758527690753,0.3608,112580.0,112570.0,0.1306171]
[1758527691254,0.42483668,112590.0,112580.0,0.1224492]
[1758527691445,0.42483668,112590.0,112580.0,1.0016492]
[1758527692153,0.42483668,112590.0,112580.0,0.1224492]
[1758527692353,0.42483668,112590.0,112580.0,1.0006892]
[1758527692548,0.36089394,112590.0,112580.0,1.0088492]
[1758527693348,0.36689394,112590.0,112580.0,1.1098492]
[1758527693550,0.36700335,112590.0,112580.0,1.1098492]
[1758527693746,0.36689394,112590.0,112580.0,1.1098492]
[1758527694351,0.37789394,112590.0,112580.0,1.1098492]
[1758527694746,0.37796062,112590.0,112580.0,1.1098492]
[1758527695050,0.37789394,112590.0,112580.0,1.1098492]
[1758527695448,0.37789394,112590.0,112580.0,1.1086092]
[1758527695652,0.39827394,112590.0,112580.0,1.1086092]
[1758527695954,0.43099394,112590.0,112580.0,0.2234492]
[1758527696151,0.43099394,112590.0,112580.0,1.0998892]
[1758527696556,0.43110533,112590.0,112580.0,1.0995292]
[1758527696747,0.017,112590.0,112580.0,0.66492229]
[1758527697055,0.017,112590.0,112580.0,1.02572229]
[1758527697351,0.017,112590.0,112580.0,1.90104229]
[1758527697549,0.017,112590.0,112580.0,1.02572229]
[1758527697748,0.017,112590.0,112580.0,1.90076229]
[1758527698151,0.017,112590.0,112580.0,1.90060229]
[1758527698748,0.017,112590.0,112580.0,2.25060229]
[1758527698955,0.017,112590.0,112580.0,2.25004229]
[1758527699357,0.017,112590.0,112580.0,1.37572229]
[1758527699555,0.017,112590.0,112580.0,2.24984229]
[1758527700249,0.017,112590.0,112580.0,2.24980229]
[1758527700650,0.017,112590.0,112580.0,1.37572229]
[1758527700964,0.017,112590.0,112580.0,2.24928229]
[1758527701153,0.01710096,112590.0,112580.0,2.24928229]
[1758527701349,0.01708769,112590.0,112580.0,2.24892229]
[1758527701555,0.38134048,112620.0,112610.0,0.1304656]
[1758527701754,0.38134048,112620.0,112610.0,1.0032656]
[1758527702052,0.35423497,112620.0,112610.0,1.0032656]
[1758527702457,0.35423497,112620.0,112610.0,1.0029056]
[1758527702657,0.39295497,112620.0,112610.0,0.2314656]
[1758527702857,0.39295497,112620.0,112610.0,1.1037456]
[1758527702858,0.40395497,112620.0,112610.0,1.1037456]
[1758527703057,0.67433497,112620.0,112610.0,1.0955856]
[1758527703358,0.67433497,112620.0,112610.0,1.0959856]
[1758527704063,0.67433497,112620.0,112610.0,0.9952656]
[1758527704356,0.67425497,112620.0,112610.0,0.9952656]
[1758527704660,0.67425497,112620.0,112610.0,0.9949056]
[1758527704953,0.67425497,112620.0,112610.0,0.1237056]
[1758527705158,0.67425497,112620.0,112610.0,0.9947456]
[1758527705961,0.67425497,112620.0,112610.0,1.0947456]
[1758527707160,0.67425497,112620.0,112610.0,0.2237056]
[1758527707462,0.42425497,112620.0,112610.0,0.1237056]
[1758527707660,0.42425497,112620.0,112610.0,0.9931456]
[1758527707860,0.42425497,112620.0,112610.0,0.9927456]
[1758527708061,0.42425497,112620.0,112610.0,0.1233056]
[1758527708362,0.42425497,112620.0,112610.0,0.1237056]
[1758527708562,0.42425497,112620.0,112610.0,1.0925056]
[1758527709065,0.42425497,112620.0,112610.0,0.9923456]
[1758527709264,0.42425497,112620.0,112610.0,0.1237056]
[1758527709466,0.42425497,112620.0,112610.0,0.9920256]
[1758527709669,0.42425497,112620.0,112610.0,0.1237056]
[1758527709850,0.42425497,112620.0,112610.0,0.9919456]
[1758527710051,0.42425497,112620.0,112610.0,1.0917856]
[1758527710561,0.42425497,112620.0,112610.0,0.2237056]
[1758527710762,0.42425497,112620.0,112610.0,1.0915056]
[1758527711368,0.42425497,112620.0,112610.0,0.2237056]
[1758527711662,0.42425497,112620.0,112610.0,1.0915056]
[1758527712959,0.42425497,112620.0,112610.0,0.2237056]
[1758527713160,0.42425497,112620.0,112610.0,1.0900256]
[1758527715368,0.42425497,112620.0,112610.0,0.1237056]
[1758527715754,0.42425497,112620.0,112610.0,0.9887056]
[1758527716458,0.42425497,112620.0,112610.0,1.0882256]
[1758527720167,0.42425497,112620.0,112610.0,0.1237056]
[1758527720464,0.85263806,112620.0,112610.0,0.9872656]
[1758527720669,0.42425497,112620.0,112610.0,0.9872656]
[1758527721470,0.42425497,112620.0,112610.0,1.0872656]
[1758527724472,0.42425497,112620.0,112610.0,0.9851056]
[1758527725376,0.42425497,112620.0,112610.0,1.0851056]
[1758527726172,1.10263806,112620.0,112610.0,0.0014]
[1758527726379,1.10263806,112620.0,112610.0,0.001]
[1758527726671,1.19136566,112620.0,112600.0,0.0001]
[1758527726871,0.0197,112550.0,112540.0,0.15900031]